bitfinex-derivatives/quotes_ETHF0:USTF0_20260117
["timestamp","ask_amount","ask_price","bid_price","bid_amount"]
[1768625833428,0.25680304,3294.5,3293.3,0.98757537]
[1768625833628,0.25680304,3294.4,3293.3,0.98757537]
[1768625833927,1.69,3294.5,3293.3,0.98757537]
[1768625834229,0.25680304,3294.4,3293.3,0.98757537]
[1768625834416,1.69,3294.5,3293.3,0.98757537]
[1768625834618,0.25679642,3294.4,3293.3,1.13096613]
[1768625834818,1.69,3294.5,3293.5,0.98417705]
[1768625835128,0.25679604,3294.4,3293.5,0.98417705]
[1768625835428,1.69,3294.5,3293.5,0.98417705]
[1768625835625,0.25678399,3294.4,3293.5,0.98417705]
[1768625835927,1.69,3294.5,3293.5,0.98417705]
[1768625836126,0.25678399,3294.4,3293.5,0.98417705]
[1768625836426,1.69,3294.5,3293.5,0.98417705]
[1768625836726,0.25677712,3294.4,3293.5,0.98417705]
[1768625837027,1.69,3294.5,3293.5,0.98417705]
[1768625837225,0.25677719,3294.4,3293.5,0.98417705]
[1768625837425,1.69,3294.5,3293.5,0.98417705]
[1768625837625,0.25677258,3294.4,3293.5,0.98417705]
[1768625837825,1.69,3294.5,3293.5,0.98417705]
[1768625838033,0.25677258,3294.4,3293.5,0.98417705]
[1768625838222,1.69,3294.5,3293.5,0.98417705]
[1768625838424,0.25676797,3294.4,3293.5,0.98417705]
[1768625838624,1.69,3294.5,3293.5,0.98417705]
[1768625838925,0.25676794,3294.4,3293.5,0.98417705]
[1768625839127,1.69,3294.5,3293.5,0.98417705]
[1768625839426,0.25676755,3294.4,3293.5,0.98417705]
[1768625839624,1.69,3294.5,3293.5,0.98417705]
[1768625839824,0.25676452,3294.4,3293.5,0.98417705]
[1768625840026,1.69,3294.5,3293.5,0.98417705]
[1768625840235,0.25676403,3294.4,3293.5,0.98417705]
[1768625840432,1.69,3294.5,3293.5,0.98417705]
[1768625840731,0.25676092,3294.4,3293.5,0.98417705]
[1768625841039,1.69,3294.5,3293.5,0.98417705]
[1768625841219,0.25676055,3294.4,3293.5,0.98417705]
[1768625841417,1.69,3294.5,3293.5,0.98417705]
[1768625841617,0.2567582,3294.4,3293.5,0.98417705]
[1768625841817,1.69,3294.5,3293.4,0.98417705]
[1768625842031,0.2567582,3294.4,3293.3,0.14678908]
[1768625842232,1.69,3294.5,3293.4,0.98417705]
[1768625842431,0.25675665,3294.4,3293.4,0.98417705]
[1768625842634,1.69,3294.5,3293.4,0.98417705]
[1768625842934,0.25675665,3294.4,3293.4,0.98417705]
[1768625843128,0.25675665,3294.3,3293.4,0.98417705]
[1768625843428,1.69,3294.5,3293.4,0.98417705]
[1768625843625,0.25675542,3294.4,3293.4,0.98417705]
[1768625843817,0.25675542,3294.3,3293.4,0.98417705]
[1768625844021,1.69,3294.5,3293.4,0.98417705]
[1768625844218,0.25675541,3294.4,3293.4,0.98417705]
[1768625844432,0.25675541,3294.3,3293.4,0.98417705]
[1768625844633,1.69,3294.5,3293.4,0.98417705]
[1768625844931,0.25675384,3294.4,3293.4,0.98417705]
[1768625845130,0.25675384,3294.3,3293.4,0.98417705]
[1768625845333,1.69,3294.5,3293.4,0.98417705]
[1768625845632,0.25675321,3294.4,3293.4,0.98417705]
[1768625845832,0.25675321,3294.3,3293.4,0.98417705]
[1768625846032,1.69,3294.5,3293.4,0.98417705]
[1768625846330,0.25675346,3294.4,3293.4,0.98417705]
[1768625846530,0.25675346,3294.3,3293.4,0.98417705]
[1768625846731,1.69,3294.5,3293.4,0.98417705]
[1768625846932,0.25675277,3294.4,3293.4,0.98417705]
[1768625847122,0.25675277,3294.3,3293.4,0.98417705]
[1768625847324,1.69,3294.5,3293.3,0.14678908]
[1768625847630,0.2567525,3294.4,3293.3,0.14678908]
[1768625847830,0.2567525,3294.3,3293.3,0.14678908]
[1768625848129,1.69,3294.5,3293.3,0.14678908]
[1768625848329,0.25675288,3294.4,3293.3,0.14678908]
[1768625848534,0.25675288,3294.3,3293.3,0.14678908]
[1768625848830,1.69,3294.5,3293.3,0.14678908]
[1768625849026,0.2567527,3294.4,3293.3,0.14678908]
[1768625849226,0.2567527,3294.3,3293.3,0.14678908]
[1768625849429,1.69,3294.5,3293.3,0.14678908]
[1768625849624,0.2567533,3294.4,3293.3,0.14678908]
[1768625849829,0.2567533,3294.3,3293.3,0.14678908]
[1768625850032,1.69,3294.5,3293.3,0.14678908]
[1768625850230,0.25675276,3294.4,3293.3,0.14678908]
[1768625850423,1.69,3294.5,3293.3,0.14678908]
[1768625850622,0.25675076,3294.4,3293.3,0.14678908]
[1768625850828,0.25675076,3294.3,3293.3,0.14678908]
[1768625851028,1.69,3294.5,3293.3,0.14678908]
[1768625851234,0.25675134,3294.4,3293.3,0.14678908]
[1768625851434,0.25675134,3294.3,3293.3,0.14678908]
[1768625851636,1.69,3294.5,3293.3,0.14678908]
[1768625851835,0.25674983,3294.4,3293.3,0.14678908]
[1768625852134,0.25674983,3294.3,3293.3,0.14678908]
[1768625852334,1.69,3294.5,3293.3,0.14678908]
[1768625852525,0.25674958,3294.4,3293.3,0.14678908]
[1768625852733,1.69,3294.5,3293.3,0.14678908]
[1768625852931,0.25674957,3294.4,3293.3,0.14678908]
[1768625853131,1.69,3294.5,3293.3,0.14678908]
[1768625853339,0.25674957,3294.4,3293.3,0.14678908]
[1768625853536,1.69,3294.5,3293.3,0.14678908]
[1768625853737,0.25674998,3294.4,3293.3,0.14678908]
[1768625853933,1.69,3294.5,3293.3,0.14678908]
[1768625854134,0.25674998,3294.4,3293.3,0.14678908]
[1768625854345,1.69,3294.5,3293.3,0.14678908]
[1768625854638,0.25675117,3294.4,3293.3,0.14678908]
[1768625854839,1.69,3294.5,3293.3,0.14678908]
[1768625855032,0.25675117,3294.4,3293.3,0.14678908]
[1768625855232,1.69,3294.5,3293.3,0.14678908]
[1768625855443,0.25675303,3294.4,3293.3,0.14678908]
[1768625855741,1.69,3294.5,3293.3,0.14678908]
[1768625856038,0.25675304,3294.4,3293.3,0.14678908]
[1768625856238,1.69,3294.7,3293.3,0.14678908]
[1768625856540,0.25675521,3294.6,3293.3,0.14678908]
[1768625856731,0.25675521,3294.5,3293.3,0.14678908]
[1768625856930,1.69,3294.7,3293.3,0.14678908]
[1768625856931,0.25675521,3294.4,3293.3,0.14678908]
[1768625857131,1.69,3294.7,3293.3,0.14678908]
[1768625857332,0.25675527,3294.6,3293.3,0.14678908]
[1768625857534,0.25675527,3294.5,3293.3,0.14678908]
[1768625857733,0.25675527,3294.4,3293.3,0.14678908]
[1768625857939,1.69,3294.7,3293.3,0.14678908]
[1768625858131,0.25675829,3294.6,3293.3,0.14678908]
[1768625858332,0.25675829,3294.5,3293.3,0.14678908]
[1768625858629,0.25675829,3294.4,3293.3,0.14678908]
[1768625858826,1.69,3294.7,3293.3,0.14678908]
[1768625859035,0.25676296,3294.6,3293.3,0.14678908]
[1768625859236,0.25676296,3294.5,3293.3,0.14678908]
[1768625859439,0.25676296,3294.4,3293.3,0.14678908]
[1768625859629,1.69,3294.7,3293.3,0.14678908]
[1768625859829,0.25676311,3294.6,3293.3,0.14678908]
[1768625860029,0.25676311,3294.5,3293.3,0.14678908]
[1768625860227,0.25676311,3294.4,3293.3,0.14678908]
[1768625860430,1.69,3294.7,3293.3,0.14678908]
[1768625860635,0.25676332,3294.6,3293.3,0.14678908]
[1768625860836,0.25676332,3294.5,3293.3,0.14678908]
[1768625861037,0.25676332,3294.4,3293.3,0.14678908]
[1768625861238,1.69,3294.7,3293.3,0.14678908]
[1768625861440,0.25676355,3294.6,3293.3,0.14678908]
[1768625861740,0.25676355,3294.5,3293.3,0.14678908]
[1768625862039,0.25676355,3294.4,3293.3,0.14678908]
[1768625862238,1.69,3294.7,3293.3,0.14678908]
[1768625862440,0.25676362,3294.6,3293.3,0.14678908]
[1768625862635,0.25676362,3294.5,3293.3,0.14678908]
[1768625862841,0.25676362,3294.4,3293.3,0.14678908]
[1768625863140,1.69,3294.7,3293.3,0.14678908]
[1768625863341,0.25676931,3294.6,3293.3,0.14678908]
[1768625863644,0.25676931,3294.5,3293.3,0.14678908]
[1768625863844,1.69,3294.7,3293.3,0.14678908]
[1768625864047,0.25676802,3294.6,3293.3,0.14678908]
[1768625864245,0.25676802,3294.5,3293.3,0.14678908]
[1768625864446,1.69,3294.7,3293.3,0.14678908]
[1768625864650,0.25677034,3294.6,3293.3,0.14678908]
[1768625864838,0.25677034,3294.5,3293.3,0.14678908]
[1768625865039,1.69,3294.7,3293.3,0.14678908]
[1768625865239,0.25676933,3294.6,3293.3,0.14678908]
[1768625865539,0.25676933,3294.5,3293.3,0.14678908]
[1768625865739,1.69,3294.7,3293.3,0.14678908]
[1768625865939,0.25676478,3294.6,3293.3,0.14678908]
[1768625866238,0.25676478,3294.5,3293.3,0.14678908]
[1768625866439,1.69,3294.7,3293.3,0.14678908]
[1768625866734,0.256761,3294.6,3293.3,0.14678908]
[1768625866934,0.256761,3294.5,3293.3,0.14678908]
[1768625867147,1.69,3294.7,3293.3,0.14678908]
[1768625867349,0.25676104,3294.6,3293.3,0.14678908]
[1768625867542,0.25676104,3294.5,3293.3,0.14678908]
[1768625867847,1.69,3294.7,3293.3,0.14678908]
[1768625868051,0.25675859,3294.6,3293.3,0.14678908]
[1768625868248,0.25675859,3294.5,3293.3,0.14678908]
[1768625868449,1.69,3294.8,3293.3,0.14678908]
[1768625868651,0.25675613,3294.7,3293.3,0.14678908]
[1768625868849,0.25675613,3294.6,3293.3,0.14678908]
[1768625869048,0.25675613,3294.5,3293.3,0.14678908]
[1768625869246,1.69,3294.8,3293.3,0.14678908]
[1768625869549,0.25675489,3294.7,3293.3,0.14678908]
[1768625869747,0.25675489,3294.6,3293.3,0.14678908]
[1768625869947,0.25675489,3294.5,3293.3,0.14678908]
[1768625870254,1.69,3294.8,3293.3,0.14678908]
[1768625870551,0.25675012,3294.7,3293.3,0.14678908]
[1768625870753,0.25675012,3294.6,3293.3,0.14678908]
[1768625870958,0.25675012,3294.5,3293.3,0.14678908]
[1768625871251,1.69,3294.8,3293.3,0.14678908]
[1768625871451,0.25674709,3294.7,3293.3,0.14678908]
[1768625871652,0.25674709,3294.6,3293.3,0.14678908]
[1768625871949,0.25674709,3294.5,3293.3,0.14678908]
[1768625872152,1.69,3294.8,3293.3,0.14678908]
[1768625872350,0.25674709,3294.7,3293.3,0.14678908]
[1768625872652,0.25674709,3294.6,3293.3,0.14678908]
[1768625872950,0.25674709,3294.5,3293.3,0.14678908]
[1768625873150,1.69,3294.8,3293.3,0.14678908]
[1768625873352,0.25674551,3294.7,3293.3,0.14678908]
[1768625873552,0.25674551,3294.6,3293.3,0.14678908]
[1768625873752,0.25674551,3294.5,3293.3,0.14678908]
[1768625874053,1.83186496,3294.8,3293.3,0.14678908]
[1768625874255,0.25674347,3294.7,3293.3,0.14678908]
[1768625874553,0.25674347,3294.6,3293.3,0.14678908]
[1768625874755,0.25674347,3294.5,3293.3,0.14678908]
[1768625874954,1.83186496,3294.8,3293.3,0.14678908]
[1768625875254,0.25674245,3294.7,3293.3,0.14678908]
[1768625875455,0.25674245,3294.6,3293.3,0.14678908]
[1768625875753,0.25674245,3294.5,3293.3,0.14678908]
[1768625875954,1.83186496,3294.8,3293.3,0.14678908]
[1768625876252,0.25674295,3294.7,3293.3,0.14678908]
[1768625876453,0.25674295,3294.6,3293.3,0.14678908]
[1768625876753,0.25674295,3294.5,3293.3,0.14678908]
[1768625876946,0.14186496,3294.8,3293.3,0.14678908]
[1768625877150,0.25674215,3294.7,3293.3,0.14678908]
[1768625877350,0.25674215,3294.6,3293.3,0.14678908]
[1768625877550,1.69305705,3294.9,3293.3,0.14678908]
[1768625877748,0.25460024,3294.8,3293.4,0.98413034]
[1768625877948,0.00305705,3294.9,3293.5,0.13117493]
[1768625878142,0.25458453,3294.8,3293.5,0.13117493]
[1768625878347,0.00305705,3294.9,3293.5,0.13117493]
[1768625897077,0.00305705,3294.9,3293.6,0.13117493]
[1768625909385,0.00305705,3294.9,3294.1,0.98372011]
[1768625919496,0.00305705,3294.9,3293.9,0.13592422]
[1768625919790,0.00305705,3294.9,3294.0,0.98372011]
[1768625920194,0.00305705,3294.9,3293.9,0.13592422]
[1768625920388,0.00305705,3294.9,3294.0,0.98372011]
[1768625920997,0.00305705,3294.9,3293.7,1.12477808]
[1768625922390,0.00305705,3294.9,3293.7,0.14105797]
[1768625922595,0.00305705,3294.9,3293.8,0.98372011]
[1768625923297,0.00305705,3294.9,3293.9,0.14105797]
[1768625957514,0.00305705,3294.9,3293.9,1.12477808]
[1768625957716,1.689,3295.2,3294.0,0.1325697]
[1768625958008,0.25225917,3295.1,3294.0,0.1325697]
[1768625958209,1.689,3295.2,3294.0,0.1325697]
[1768625958818,1.69170865,3295.2,3294.0,0.1325697]
[1768625960014,0.00270865,3295.2,3294.1,1.11628981]
[1768625960318,1.69170865,3295.2,3294.1,1.11628981]
[1768625960915,0.00270865,3295.2,3294.2,0.1325697]
[1768625961114,0.00270865,3295.2,3293.7,0.15187]
[1768625961316,0.98372011,3294.3,3293.4,0.1325697]
[1768625961522,0.98372011,3294.7,3293.4,0.1325697]
[1768625961716,0.98642876,3295.2,3293.7,1.11747168]
[1768625961913,1.94120475,3295.1,3294.1,0.98372011]
[1768625962115,1.689,3295.1,3294.1,0.98372011]
[1768625962622,1.689,3295.1,3294.0,0.13375157]
[1768625962920,0.00270865,3295.2,3294.2,0.13375157]
[1768625963130,1.69170865,3295.2,3294.2,0.13375157]
[1768625964119,1.11736745,3295.1,3293.4,0.15188]
[1768625964324,0.98372011,3294.4,3293.4,0.13375157]
[1768625964628,0.98372011,3294.9,3293.6,0.98372011]
[1768625964826,0.25220216,3294.8,3293.6,0.98372011]
[1768625965023,0.98372011,3294.9,3293.6,0.98372011]
[1768625965226,1.94120064,3294.8,3293.5,1.11747168]
[1768625965534,1.689,3294.8,3293.5,1.11747168]
[1768625971440,0.13364734,3295.1,3293.5,0.13375157]
[1768625971738,1.94194149,3295.0,3293.5,0.13375157]
[1768625971934,0.25194149,3294.9,3293.5,0.13375157]
[1768625972136,0.25194149,3294.8,3293.5,0.13375157]
[1768625972336,1.69,3295.0,3293.5,0.13375157]
[1768625972637,0.25192576,3294.9,3293.5,0.13375157]
[1768625972839,0.25192576,3294.8,3293.5,0.13375157]
[1768625973038,1.69,3295.0,3293.5,0.13375157]
[1768625973231,0.25192576,3294.9,3293.5,0.13375157]
[1768625973431,0.25192576,3294.8,3293.5,0.13375157]
[1768625973731,1.69,3295.0,3293.5,0.13375157]
[1768625973931,0.25191321,3294.9,3293.5,0.13375157]
[1768625974133,0.25191321,3294.8,3293.5,0.13375157]
[1768625974329,1.69,3295.0,3293.5,0.13375157]
[1768625974629,0.25190266,3294.9,3293.5,0.13375157]
[1768625974827,0.25190266,3294.8,3293.5,0.13375157]
[1768625975025,1.69,3295.0,3293.5,0.13375157]
[1768625975238,0.25189338,3294.9,3293.5,0.13375157]
[1768625975544,0.25189338,3294.8,3293.5,0.13375157]
[1768625975748,1.69,3294.9,3293.5,0.13375157]
[1768625976041,0.25189303,3294.8,3293.5,0.13375157]
[1768625976244,1.69,3294.9,3293.5,0.13375157]
[1768625976424,0.25188575,3294.8,3293.5,0.13375157]
[1768625976624,1.69,3294.9,3293.5,0.13375157]
[1768625976833,0.25188575,3294.8,3293.5,0.13375157]
[1768625977035,1.69,3294.9,3293.5,0.13375157]
[1768625977238,0.25188575,3294.8,3293.5,0.13375157]
[1768625977441,0.13364734,3295.1,3293.6,0.13705913]
[1768625977742,1.94187684,3295.0,3293.6,0.13705913]
[1768625978042,0.25187684,3294.9,3293.6,0.13705913]
[1768625978244,1.69,3295.0,3293.6,0.13705913]
[1768625978542,0.25187887,3294.9,3293.6,0.13705913]
[1768625978732,1.69,3295.0,3293.6,0.13705913]
[1768625978933,0.25187893,3294.9,3293.6,0.13705913]
[1768625979137,0.00270865,3295.2,3293.6,0.13705913]
[1768625979341,1.94188156,3295.1,3293.6,0.13705913]
[1768625979542,0.25188156,3295.0,3293.6,0.13705913]
[1768625979744,0.25188156,3294.9,3293.6,0.13705913]
[1768625980042,1.69,3295.1,3293.6,0.13705913]
[1768625980243,0.25188156,3295.0,3293.6,0.13705913]
[1768625980540,0.25188524,3294.9,3293.6,0.13705913]
[1768625980740,1.69,3295.0,3293.6,0.13705913]
[1768625980943,0.25188524,3294.9,3293.6,0.13705913]
[1768625981142,1.69,3295.0,3293.6,0.13705913]
[1768625981445,0.25188957,3294.9,3293.6,0.13705913]
[1768625981643,0.00270865,3295.2,3293.6,0.13705913]
[1768625981829,1.94188957,3295.1,3293.6,0.13705913]
[1768625982028,0.25188957,3295.0,3293.6,0.13705913]
[1768625982238,0.25188957,3294.9,3293.6,0.13705913]
[1768625982438,1.69,3295.1,3293.6,0.13705913]
[1768625982636,0.25189453,3295.0,3293.6,0.13705913]
[1768625982842,1.69,3295.1,3293.6,0.13705913]
[1768625983045,0.25189431,3295.0,3293.6,0.13705913]
[1768625983342,1.69,3295.1,3293.6,0.13705913]
[1768625983534,0.25190048,3295.0,3293.6,0.13705913]
[1768625983733,1.69,3295.1,3293.6,0.13705913]
[1768625983935,0.25190048,3295.0,3293.6,0.13705913]
[1768625984137,1.69,3295.1,3293.6,0.13705913]
[1768625984338,0.25190733,3295.0,3293.6,0.13705913]
[1768625984539,1.69,3295.1,3293.6,0.13705913]
[1768625984739,0.25190752,3295.0,3293.6,0.13705913]
[1768625984937,1.69,3295.1,3293.6,0.13705913]
[1768625985137,0.25190757,3295.0,3293.6,0.13705913]
[1768625985340,1.69,3295.1,3293.6,0.13705913]
[1768625985539,0.25191517,3295.0,3293.6,0.13705913]
[1768625985746,1.69,3295.1,3293.6,0.13705913]
[1768625985939,0.25191512,3295.0,3293.6,0.13705913]
[1768625986140,1.69,3295.1,3293.6,0.13705913]
[1768625986349,0.25192422,3295.0,3293.6,0.13705913]
[1768625986545,1.69,3295.1,3293.6,0.13705913]
[1768625986739,0.25192422,3295.0,3293.6,0.13705913]
[1768625986939,1.69,3295.1,3293.6,0.13705913]
[1768625987139,0.25192422,3295.0,3293.6,0.13705913]
[1768625987347,1.69,3295.1,3293.6,0.13705913]
[1768625987539,0.25193439,3295.0,3293.6,0.13705913]
[1768625987739,1.69,3295.1,3293.6,0.13705913]
[1768625987940,0.25193445,3295.0,3293.6,0.13705913]
[1768625988140,0.13808346,3295.0,3293.3,0.00339832]
[1768625989253,0.25199659,3294.9,3293.3,0.00339832]
[1768625989547,0.13808346,3295.0,3293.3,0.00339832]
[1768625989748,0.25199659,3294.9,3293.3,0.00339832]
[1768625989950,0.13808346,3295.0,3293.3,0.00339832]
[1768625990150,0.25199659,3294.9,3293.3,0.00339832]
[1768625990350,0.13808346,3295.0,3293.3,0.00339832]
[1768625990649,0.13808346,3294.8,3293.3,0.00339832]
[1768625992159,0.14365063,3294.6,3293.3,0.00339832]
[1768625998445,1.69,3294.8,3293.3,0.13457381]
[1768625998651,0.25212382,3294.7,3293.3,0.13457381]
[1768625998851,1.69,3294.8,3293.3,0.13457381]
[1768625999059,0.25212323,3294.7,3293.3,0.13457381]
[1768625999260,1.69,3294.8,3293.3,0.13457381]
[1768625999560,0.2521204,3294.7,3293.3,0.13457381]
[1768625999761,1.69,3294.8,3293.3,0.13457381]
[1768625999962,0.25212041,3294.7,3293.3,0.13457381]
[1768626000170,1.69,3294.8,3293.3,0.13457381]
[1768626000461,0.25211735,3294.7,3293.3,0.13457381]
[1768626000652,1.69,3294.8,3293.3,0.13457381]
[1768626000853,0.25211741,3294.7,3293.3,0.13457381]
[1768626001052,1.69,3294.8,3293.3,0.13457381]
[1768626001254,0.25211741,3294.7,3293.3,0.13457381]
[1768626001454,1.69,3294.8,3293.3,0.13457381]
[1768626001754,0.25211487,3294.7,3293.3,0.13457381]
[1768626001954,1.69,3294.8,3293.3,0.13457381]
[1768626002163,0.25211487,3294.7,3293.3,0.13457381]
[1768626002364,1.69,3294.8,3293.3,0.13457381]
[1768626002566,1.83365063,3295.0,3293.4,0.13117549]
[1768626002758,0.25209997,3294.9,3293.4,0.13117549]
[1768626003064,1.83365063,3295.0,3293.4,0.13117549]
[1768626021278,0.14365063,3294.9,3293.4,0.13117549]
[1768626024180,0.14365063,3294.9,3293.4,1.11519853]
[1768626033381,0.14365063,3294.9,3293.8,0.98399884]
[1768626034083,0.14365063,3294.9,3293.6,0.98399884]
[1768626034682,0.14365063,3294.9,3293.4,0.13117549]
[1768626034885,1.11997774,3294.8,3293.4,1.11517433]
[1768626036186,0.1359789,3294.8,3293.4,1.11517433]
[1768626036379,0.1359789,3294.8,3293.6,0.98399884]
[1768626037190,1.69,3295.0,3293.6,0.98399884]
[1768626037786,1.69,3295.0,3293.9,0.98399884]
[1768626038092,1.69,3295.0,3293.8,0.98399884]
[1768626039787,0.00270865,3295.2,3294.0,0.13031277]
[1768626039994,0.00270865,3295.2,3294.3,0.98399884]
[1768626040680,0.00270865,3295.2,3294.6,0.98399884]
[1768626044592,0.00270865,3295.2,3294.3,0.13031277]
[1768626044593,0.00270865,3295.2,3294.5,0.98399884]
[1768626062401,0.00270865,3295.2,3294.0,0.15185]
[1768626062402,0.15173,3296.8,3295.2,0.1310075]
[1768626062599,0.98399884,3296.8,3295.4,0.98399884]
[1768626062804,0.98399884,3296.8,3295.4,1.11500634]
[1768626063099,0.98399884,3297.0,3295.6,0.98399884]
[1768626063294,0.98399884,3296.9,3295.5,0.1310075]
[1768626065302,0.98399884,3296.7,3295.5,0.1310075]
[1768626066199,0.00273041,3297.0,3295.5,0.1310075]
[1768626066407,0.98399884,3296.7,3295.5,0.1310075]
[1768626067199,0.98399884,3296.5,3295.5,0.1310075]
[1768626067402,0.98399884,3296.5,3294.9,0.15181]
[1768626067403,0.98399884,3296.1,3295.0,0.1310075]
[1768626067591,0.98399884,3296.1,3294.9,0.15181]
[1768626067592,0.98399884,3295.9,3294.6,0.1310075]
[1768626068591,0.98399884,3295.7,3294.6,0.1310075]
[1768626068794,0.98399884,3295.4,3294.2,0.15184]
[1768626069393,0.98399884,3295.4,3294.2,0.2828475]
[1768626069594,0.98399884,3295.2,3294.2,0.1310075]
[1768626069794,0.98399884,3295.4,3294.2,0.1310075]
[1768626071898,0.98399884,3295.1,3293.8,1.11500634]
[1768626072105,0.98399884,3295.1,3293.9,0.1310075]
[1768626072805,0.98399884,3295.3,3293.9,0.1310075]
[1768626074903,0.98399884,3295.1,3293.9,0.1310075]
[1768626084312,0.98399884,3295.2,3293.9,0.1310075]
[1768626086701,0.98399884,3295.2,3293.7,0.98399884]
[1768626092810,0.98399884,3295.2,3293.6,0.15187]
[1768626093011,0.98399884,3295.2,3293.7,0.98399884]
[1768626093421,0.1313115,3295.3,3293.6,0.15187]
[1768626094720,0.13337196,3295.1,3293.5,0.13638174]
[1768626095028,0.13337196,3295.1,3293.3,0.00339832]
[1768626100018,0.13337196,3294.7,3293.3,0.00339832]
[1768626117426,0.14414379,3294.5,3293.3,0.00339832]
[1768626117626,0.14414379,3294.3,3293.3,0.00339832]
[1768626117830,0.14414379,3294.3,3292.7,0.13549386]
[1768626118931,0.14414379,3294.3,3292.7,0.13767001]
[1768626120437,0.14414379,3294.3,3292.7,0.00217615]
[1768626126738,0.00307588,3294.5,3292.9,0.13549386]
[1768626127943,0.00307588,3294.5,3293.2,1.11939491]
[1768626129958,0.00307588,3294.5,3293.2,0.13549386]
[1768626155280,0.00307588,3294.5,3293.4,0.98413468]
[1768626156382,0.00307588,3294.5,3293.8,0.98413468]
[1768626156575,3.038,3295.3,3294.0,1.11654062]
[1768626156785,1.7849725,3295.2,3294.0,1.11654062]
[1768626157081,1.531,3295.2,3294.0,1.11654062]
[1768626157690,1.53486596,3295.2,3294.0,1.11654062]
[1768626158585,1.53486596,3295.2,3294.0,0.13240594]
[1768626158886,1.53486596,3295.2,3294.0,1.11654062]
[1768626160577,0.98413468,3295.1,3294.0,0.13240594]
[1768626163785,0.98413468,3294.9,3293.5,0.13240594]
[1768626163987,0.98413468,3294.5,3293.5,0.13240594]
[1768626165486,0.98413468,3294.7,3293.5,0.13240594]
[1768626166484,0.98413468,3294.7,3293.4,0.15188]
[1768626171387,0.98413468,3294.7,3293.4,1.13601468]
[1768626174301,0.98413468,3294.9,3293.4,1.28068814]
[1768626175095,0.98413468,3294.9,3293.6,0.98413468]
[1768626176592,2.67313468,3294.9,3293.6,0.98413468]
[1768626177586,2.67313468,3294.9,3293.4,0.29655346]
[1768626177785,2.67313468,3294.9,3293.7,0.98413468]
[1768626182804,0.00386596,3295.2,3293.7,0.98413468]
[1768626183006,0.98413468,3295.0,3293.7,0.98413468]
[1768626183299,0.98413468,3295.0,3293.7,1.12880814]
[1768626184304,1.11845776,3295.0,3293.5,0.98413468]
[1768626185602,0.98413468,3294.8,3293.5,0.98413468]
[1768626193912,0.98413468,3294.8,3293.4,0.15188]
[1768626194112,0.98413468,3294.8,3293.4,1.13601468]
[1768626196422,0.98413468,3294.8,3293.4,0.15188]
[1768626200924,1.82332308,3295.0,3293.6,0.98413468]
[1768626202626,0.25419667,3294.9,3293.6,0.98413468]
[1768626202816,2.80745776,3295.0,3293.6,0.98413468]
[1768626203016,0.2541969,3294.9,3293.6,0.98413468]
[1768626203317,0.13718458,3294.9,3293.5,0.98413468]
[1768626217538,0.13718458,3294.9,3293.4,0.29507299]
[1768626221030,1.76218458,3294.9,3293.4,0.29507299]
[1768626257983,0.13718458,3294.9,3293.4,0.29507299]
[1768626258282,1.82618458,3294.9,3293.4,0.29507299]
[1768626277292,1.82618458,3294.9,3293.5,0.98401621]
[1768626285003,0.13718458,3294.9,3293.5,0.98401621]
[1768626285195,1.82618458,3294.9,3293.5,0.98401621]
[1768626286004,0.13718458,3294.9,3293.5,0.98401621]
[1768626286195,1.82618458,3294.9,3293.5,0.98401621]
[1768626290912,0.98401621,3294.7,3293.4,0.29507299]
[1768626293606,1.11693185,3294.7,3293.4,0.15188]
[1768626297219,0.13291564,3294.6,3293.4,0.15188]
[1768626297620,1.11693185,3294.6,3293.4,0.15188]
[1768626300622,0.98401621,3294.4,3293.4,0.15188]
[1768626300823,0.98401621,3294.4,3293.1,0.98401621]
[1768626303830,0.98401621,3294.4,3292.9,0.13181898]
[1768626304018,0.13291564,3294.5,3293.2,0.98401621]
[1768626305838,2.67301621,3294.9,3293.4,0.98401621]
[1768626306037,0.25403149,3294.8,3293.4,0.98401621]
[1768626306237,2.67301621,3294.9,3293.4,0.98401621]
[1768626306438,0.2540237,3294.8,3293.4,0.98401621]
[1768626306635,2.80593185,3294.9,3293.4,0.98401621]
[1768626306938,0.25402375,3294.8,3293.4,0.98401621]
[1768626307132,2.80593185,3294.9,3293.4,0.98401621]
[1768626307436,0.25401745,3294.8,3293.4,0.98401621]
[1768626307631,2.80593185,3294.9,3293.4,0.98401621]
[1768626307936,0.25401744,3294.8,3293.4,0.98401621]
[1768626308235,2.80593185,3294.9,3293.4,0.98401621]
[1768626308533,0.25401246,3294.8,3293.4,0.98401621]
[1768626308727,2.80593185,3294.9,3293.4,0.98401621]
[1768626308929,0.25401246,3294.8,3293.4,0.98401621]
[1768626309125,2.80593185,3294.9,3293.4,0.98401621]
[1768626309330,0.25400869,3294.8,3293.4,0.98401621]
[1768626309532,2.80593185,3294.9,3293.4,0.98401621]
[1768626309732,0.2540087,3294.8,3293.4,0.98401621]
[1768626309932,2.80593185,3294.9,3293.4,0.98401621]
[1768626310133,0.2540087,3294.8,3293.4,0.98401621]
[1768626310334,2.80593185,3294.9,3293.4,0.98401621]
[1768626310538,0.25400407,3294.8,3293.4,0.98401621]
[1768626310739,2.80593185,3294.9,3293.4,0.98401621]
[1768626310939,0.25400408,3294.8,3293.4,0.98401621]
[1768626311142,0.13291564,3294.8,3293.4,0.98401621]
[1768626312047,0.13291564,3294.8,3293.0,0.28371898]
[1768626312231,1.11693185,3294.7,3293.3,0.98401621]
[1768626319351,1.11693185,3294.7,3293.0,0.28371898]
[1768626319542,1.11693185,3294.7,3293.3,0.98401621]
[1768626323643,0.13635031,3294.6,3293.0,0.28371898]
[1768626323844,0.13635031,3294.6,3293.2,0.98401621]
[1768626328749,0.98401621,3294.5,3293.0,0.28371898]
[1768626328951,0.98401621,3294.5,3293.1,0.98401621]
[1768626331255,0.13635031,3294.6,3293.1,0.98401621]
[1768626331456,0.13635031,3294.6,3293.4,0.98401621]
[1768626331656,3.038,3294.7,3293.4,0.98401621]
[1768626331846,0.25416597,3294.6,3293.4,0.98401621]
[1768626332046,3.038,3294.7,3293.4,0.98401621]
[1768626332255,3.038,3294.7,3293.4,1.12066624]
[1768626333353,3.038,3294.7,3293.6,0.98401621]
[1768626337157,3.038,3294.7,3293.4,0.13665003]
[1768626337158,3.038,3294.7,3293.4,1.12066624]
[1768626339351,3.038,3294.7,3293.4,0.13665003]
[1768626339858,0.14125194,3294.6,3292.7,3.83446348]
[1768626340062,3.038,3294.5,3292.8,0.13665003]
[1768626340252,1.689,3294.4,3292.8,0.13665003]
[1768626340963,1.689,3294.4,3292.8,0.14031871]
[1768626343256,0.14125194,3294.8,3293.1,0.13665003]
[1768626343457,4.98308758,3294.7,3293.1,0.13665003]
[1768626343657,4.727,3294.7,3293.1,0.13665003]
[1768626344266,0.14125194,3294.8,3293.1,0.13665003]